[Event "28th Hit Open-A 2024"]
[Site "Nova Gorica"]
[Date "2024.01.28"]
[Round "4.36"]
[White "Kejzar, Petra"]
[Black "Papler, Peter"]
[Result "1-0"]
[ECO "A55"]
[WhiteElo "2025"]
[BlackElo "1691"]
[Annotator "RC"]
[PlyCount "135"]
[EventDate "2024.01.22"]
[EventType "swiss"]
[EventCountry "SLO"]
[SourceTitle "playchess.com"]
[Source "ChessBase"]
[SourceQuality "1"]
[TimeControl "5400+30"]

1. d4 {[%emt 0:00:05]} Nf6 {[%emt 0:00:11]} 2. c4 {[%emt 0:00:10]} d6 {[%emt 0:00:26]} 3. Nf3 {[%emt 0:00:08]} Nbd7 {[%emt 0:00:38]} 4. Nc3 {[%emt 0:00:19]} c6 {[%emt 0:00:29]} 5. e4 {[%emt 0:00:18]} Qc7 {[%emt 0:00:19]} 6. Be2 {[%emt 0:00:56]} e5 {[%emt 0:00:46]} 7. O-O {[%emt 0:00:21]} Be7 {[%emt 0:00:48]} 8. Rb1 {[%emt 0:00:21]} O-O {[%emt 0:00:24]} 9. b4 {[%emt 0:01:34]} h6 {[%emt 0:00:39]} 10. h3 {[%emt 0:02:03]} Re8 {[%emt 0:03:00]} 11. Be3 {[%emt 0:01:29]} Nf8 {[%emt 0:01:31]} 12. Qd2 {[%emt 0:04:57]} Ng6 {[%emt 0:01:41]} 13. Rfd1 {[%emt 0:04:15]} Bf8 {[%emt 0:00:35]} 14. d5 {[%emt 0:05:37]} Nd7 {[%emt 0:01:21]} 15. dxc6 {[%emt 0:01:43]} bxc6 {[%emt 0:00:11]} 16. Qc2 {[%emt 0:03:56]} Bb7 {[%emt 0:03:40]} 17. Nd2 {[%emt 0:02:49]} d5 {[%emt 0:05:52]} 18. exd5 {[%emt 0:01:23]} cxd5 {[%emt 0:00:21]} 19. Nb5 {[%emt 0:00:43]} Qb8 {[%emt 0:00:57]} 20. cxd5 {[%emt 0:08:38]} Rc8 {[%emt 0:00:08]} 21. Qb3 {[%emt 0:01:11]} Nf6 {[%emt 0:00:43]} 22. Nf1 {[%emt 0:01:52]} a6 {[%emt 0:10:55]} 23. Nc3 {[%emt 0:02:44]} Ne8 {[%emt 0:07:15]} 24. Na4 {[%emt 0:01:08]} Nf4 {[%emt 0:02:08]} 25. Bxf4 {[%emt 0:00:58]} exf4 {[%emt 0:00:05]} 26. Nb6 {[%emt 0:00:34]} Rd8 {[%emt 0:00:43]} 27. Nxa8 {[%emt 0:00:15]} Qxa8 {[%emt 0:00:10]} 28. Bf3 {[%emt 0:00:25]} Nd6 {[%emt 0:00:26]} 29. Rbc1 {[%emt 0:01:30]} Nf5 {[%emt 0:03:08]} 30. a3 {[%emt 0:08:45]} Nh4 {[%emt 0:00:29]} 31. Nh2 {[%emt 0:03:30]} Nxf3+ {[%emt 0:00:23]} 32. Qxf3 {[%emt 0:03:38]} Rxd5 {[%emt 0:00:34]} 33. Rxd5 {[%emt 0:02:45]} Bxd5 {[%emt 0:01:32]} 34. Qg4 {[%emt 0:00:27]} Qb7 {[%emt 0:08:34]} 35. Nf3 {[%emt 0:01:57]} g5 {[%emt 0:02:20]} 36. Nxg5 {[%emt 0:03:10]} hxg5 {[%emt 0:00:10]} 37. Qxg5+ {[%emt 0:00:04]} Bg7 {[%emt 0:00:08]} 38. Rd1 {[%emt 0:01:28]} Be6 {[%emt 0:01:27]} 39. Rd8+ {[%emt 0:00:20]} Kh7 {[%emt 0:00:06]} 40. Qxf4 {[%emt 0:00:54]} Qe7 {[%emt 0:01:22]} 41. Qe4+ {[%emt 0:01:12]} f5 {[%emt 0:05:35]} 42. Qd3 {[%emt 0:01:05]} Qf6 {[%emt 0:04:00]} 43. Qd1 {[%emt 0:02:53]} Qg5 {[%emt 0:03:47]} 44. Rd6 {[%emt 0:00:50]} Bc8 {[%emt 0:02:02]} 45. Qc2 {[%emt 0:04:24]} Bb7 {[%emt 0:00:29]} 46. g4 {[%emt 0:00:46]} Be4 {[%emt 0:00:33]} 47. Qd2 {[%emt 0:04:13]} Qe7 {[%emt 0:06:02]} 48. Rd7 {[%emt 0:01:38]} Qe5 {[%emt 0:00:42]} 49. Qd1 {[%emt 0:04:53]} Qc3 {[%emt 0:03:04]} 50. f3 {[%emt 0:01:44]} Bc6 {[%emt 0:05:44]} 51. Rd3 {[%emt 0:00:27]} Qe5 {[%emt 0:01:09]} 52. Kg2 {[%emt 0:00:41]} Bf6 {[%emt 0:01:50]} 53. Rd6 {[%emt 0:05:55]} Qb2+ {[%emt 0:05:48]} 54. Qd2 {[%emt 0:01:11]} Bb5 {[%emt 0:00:46]} 55. Qxb2 {[%emt 0:01:06]} Bxb2 {[%emt 0:00:10]} 56. a4 {[%emt 0:00:21]} Bxa4 {[%emt 0:01:12]} 57. Rxa6 {[%emt 0:00:02]} Bb5 {[%emt 0:00:33]} 58. Rb6 {[%emt 0:00:06]} Bd3 {[%emt 0:00:28]} 59. g5 {[%emt 0:00:19]} f4 {[%emt 0:01:07]} 60. b5 {[%emt 0:00:34]} Bc1 {[%emt 0:01:21]} 61. h4 {[%emt 0:00:41]} Be3 {[%emt 0:00:08]} 62. Rh6+ {[%emt 0:00:23]} Kg7 {[%emt 0:00:07]} 63. b6 {[%emt 0:00:10]} Ba6 {[%emt 0:00:40]} 64. Rc6 {[%emt 0:00:16]} Kg8 {[%emt 0:01:47]} 65. Rc7 {[%emt 0:00:08]} Bxb6 {[%emt 0:02:03]} 66. Rc6 {[%emt 0:00:05]} Be3 {[%emt 0:00:16]} 67. Rxa6 {[%emt 0:00:06]} Kg7 {[%emt 0:00:12]} 68. Kh3 {[%emt 0:00:09]} 1-0

[Event "28th Hit Open-A 2024"]
[Site "Nova Gorica"]
[Date "2024.01.28"]
[Round "4.37"]
[White "Budai, Federico"]
[Black "Novak, Rok"]
[Result "1/2-1/2"]
[ECO "B12"]
[WhiteElo "1861"]
[BlackElo "1777"]
[Annotator "NA RC"]
[PlyCount "62"]
[EventDate "2024.01.22"]
[EventType "swiss"]
[EventCountry "SLO"]
[SourceTitle "playchess.com"]
[Source "ChessBase"]
[SourceQuality "1"]
[TimeControl "5400+30"]

1. e4 {[%emt 0:00:02]} c6 {[%emt 0:00:55]} 2. d4 {[%emt 0:00:15]} d5 {[%emt 0:00:05]} 3. e5 {[%emt 0:00:06]} c5 {[%emt 0:00:20]} 4. dxc5 {[%emt 0:00:07]} Nc6 {[%emt 0:00:34]} 5. Nf3 {[%emt 0:01:19]} Bg4 {[%emt 0:00:20]} 6. Bb5 {[%emt 0:07:08]} Qa5+ {[%emt 0:00:42]} 7. Nc3 {[%emt 0:00:18]} e6 {[%emt 0:00:11]} 8. Be3 {[%emt 0:13:01]} Nge7 {[%emt 0:02:45]} 9. h3 {[%emt 0:24:46]} Bxf3 {[%emt 0:01:00]} 10. gxf3 {[%emt 0:10:35]} Nf5 {[%emt 0:01:34]} 11. Bd2 {[%emt 0:03:29]} Qc7 {[%emt 0:01:30]} 12. f4 {[%emt 0:01:24]} Bxc5 {[%emt 0:00:43]} 13. Na4 {[%emt 0:01:24]} Be7 {[%emt 0:01:17]} 14. Bd3 {[%emt 0:02:37]} Nh4 {[%emt 0:10:31]} 15. Qg4 {[%emt 0:05:54]} g6 {[%emt 0:03:53]} 16. Nc3 {[%emt 0:03:58]} a6 {[%emt 0:01:45]} 17. Ne2 {[%emt 0:01:49]} O-O-O {[%emt 0:05:52]} 18. O-O-O {[%emt 0:02:15]} Kb8 {[%emt 0:03:51]} 19. Kb1 {[%emt 0:00:11]} Rhg8 {[%emt 0:07:53]} 20. Rhf1 {[%emt 0:07:43]} Qb6 {[%emt 0:04:36]} 21. Be3 {[%emt 0:03:10]} d4 {[%emt 0:02:59]} 22. Bd2 {[%emt 0:05:29]} Nb4 {[%emt 0:11:42]} 23. Bxb4 {[%emt 0:00:42]} Qxb4 {[%emt 0:00:14]} 24. c3 {[%emt 0:02:32]} dxc3 {[%emt 0:00:21]} 25. Nxc3 {[%emt 0:00:06]} Rc8 {[%emt 0:09:51]} 26. Rc1 {[%emt 0:00:33]} Rgd8 {[%emt 0:03:16]} 27. Rfd1 {[%emt 0:00:17]} Rd4 {[%emt 0:09:19]} 28. Ne2 {[%emt 0:01:10]} Rxc1+ {[%emt 0:00:13]} 29. Kxc1 {[%emt 0:00:27]} Rd8 {[%emt 0:07:14]} 30. Qg3 {[%emt 0:00:33]} Qa4 {[%emt 0:01:24]} 31. Nc3 {[%emt 0:00:53]} Qc6 {[%emt 0:00:59]} 1/2-1/2

[Event "28th Hit Open-A 2024"]
[Site "Nova Gorica"]
[Date "2024.01.28"]
[Round "4.38"]
[White "Ivsek, Cveto"]
[Black "Pagnutti, Lorenzo"]
[Result "1/2-1/2"]
[ECO "D02"]
[WhiteElo "1711"]
[BlackElo "1859"]
[Annotator "NA RC"]
[PlyCount "85"]
[EventDate "2024.01.22"]
[EventType "swiss"]
[EventCountry "SLO"]
[SourceTitle "playchess.com"]
[Source "ChessBase"]
[SourceQuality "1"]
[TimeControl "5400+30"]

1. d4 {[%emt 0:00:01]} d5 {[%emt 0:00:12]} 2. Bf4 {[%emt 0:00:29]} Nf6 {[%emt 0:00:42]} 3. e3 {[%emt 0:01:29]} e6 {[%emt 0:01:23]} 4. Nf3 {[%emt 0:00:37]} Bd6 {[%emt 0:00:19]} 5. Bxd6 {[%emt 0:01:47]} cxd6 {[%emt 0:00:22]} 6. c3 {[%emt 0:00:53]} O-O {[%emt 0:00:27]} 7. Be2 {[%emt 0:02:42]} Nc6 {[%emt 0:00:17]} 8. O-O {[%emt 0:00:22]} a5 {[%emt 0:02:30]} 9. Nbd2 {[%emt 0:04:07]} h6 {[%emt 0:01:01]} 10. h3 {[%emt 0:02:13]} Ne4 {[%emt 0:00:52]} 11. Rc1 {[%emt 0:12:22]} f5 12. c4 {[%emt 0:00:00]} dxc4 {[%emt 0:01:21]} 13. Bxc4 {[%emt 0:02:40]} d5 {[%emt 0:00:48]} 14. Bb5 {[%emt 0:00:50]} Bd7 {[%emt 0:03:39]} 15. Bxc6 {[%emt 0:02:18]} Bxc6 {[%emt 0:00:57]} 16. Ne5 {[%emt 0:00:14]} Bb5 {[%emt 0:00:56]} 17. Re1 {[%emt 0:00:35]} Rc8 {[%emt 0:02:08]} 18. Ndf3 {[%emt 0:06:45]} Be8 {[%emt 0:04:59]} 19. Rxc8 {[%emt 0:01:13]} Qxc8 {[%emt 0:00:03]} 20. Qc1 {[%emt 0:00:20]} Bh5 {[%emt 0:03:25]} 21. Nh2 {[%emt 0:11:11]} Qd8 {[%emt 0:10:42]} 22. Qc2 {[%emt 0:15:14]} f4 {[%emt 0:01:11]} 23. exf4 {[%emt 0:01:55]} Rxf4 {[%emt 0:00:28]} 24. Nhf3 {[%emt 0:02:44]} Bxf3 {[%emt 0:01:03]} 25. Nxf3 {[%emt 0:00:44]} Rf7 {[%emt 0:13:22]} 26. Rc1 {[%emt 0:00:30]} Qf6 {[%emt 0:02:38]} 27. Rf1 {[%emt 0:03:45]} Qd8 {[%emt 0:02:15]} 28. Rc1 {[%emt 0:00:13]} Qf6 {[%emt 0:01:39]} 29. Rf1 {[%emt 0:00:06]} Rf8 {[%emt 0:06:20]} 30. Ne5 {[%emt 0:02:51]} Qd8 {[%emt 0:03:14]} 31. Nf3 {[%emt 0:03:04]} Qe8 {[%emt 0:04:09]} 32. Qc7 {[%emt 0:01:21]} Qb5 {[%emt 0:01:50]} 33. Qc2 {[%emt 0:00:47]} Nd6 {[%emt 0:00:46]} 34. Re1 {[%emt 0:00:57]} Ne4 {[%emt 0:01:28]} 35. Rc1 {[%emt 0:02:36]} Qb6 {[%emt 0:01:56]} 36. b3 {[%emt 0:00:24]} Qd6 {[%emt 0:01:38]} 37. Qc7 {[%emt 0:00:28]} Qa6 {[%emt 0:00:39]} 38. Qc2 {[%emt 0:00:52]} Nd6 {[%emt 0:02:19]} 39. Re1 {[%emt 0:01:07]} Ne4 {[%emt 0:01:40]} 40. Rc1 {[%emt 0:00:11]} Nd6 {[%emt 0:03:07]} 41. Re1 {[%emt 0:00:05]} Ne4 {[%emt 0:00:35]} 42. Rc1 {[%emt 0:00:06]} b5 43. Re1 {[%emt 0:00:04]} 1/2-1/2

[Event "28th Hit Open-A 2024"]
[Site "Nova Gorica"]
[Date "2024.01.28"]
[Round "4.39"]
[White "Tonel, Giulia"]
[Black "Vodnik, Val"]
[Result "1-0"]
[ECO "C54"]
[WhiteElo "1851"]
[BlackElo "1661"]
[Annotator "NA RC"]
[PlyCount "45"]
[EventDate "2024.01.22"]
[EventType "swiss"]
[EventCountry "SLO"]
[SourceTitle "playchess.com"]
[Source "ChessBase"]
[SourceQuality "1"]
[TimeControl "5400+30"]

1. e4 {[%emt 0:04:13]} e5 {[%emt 0:00:05]} 2. Nf3 {[%emt 0:00:11]} Nc6 {[%emt 0:00:10]} 3. Bc4 {[%emt 0:00:24]} Bc5 {[%emt 0:00:04]} 4. c3 {[%emt 0:00:21]} Nf6 {[%emt 0:00:04]} 5. d4 {[%emt 0:01:08]} exd4 {[%emt 0:00:06]} 6. b4 {[%emt 0:00:33]} Bb6 {[%emt 0:01:08]} 7. e5 {[%emt 0:01:19]} d5 {[%emt 0:01:46]} 8. exf6 {[%emt 0:01:28]} dxc4 {[%emt 0:00:11]} 9. Qe2+ {[%emt 0:00:42]} Be6 {[%emt 0:00:46]} 10. b5 {[%emt 0:01:46]} d3 {[%emt 0:11:06]} 11. Qe4 {[%emt 0:02:52]} Na5 {[%emt 0:00:28]} 12. fxg7 {[%emt 0:01:20]} Rg8 {[%emt 0:00:05]} 13. Qxh7 {[%emt 0:06:40]} f6 {[%emt 0:01:41]} 14. O-O {[%emt 0:05:05]} Qe7 {[%emt 0:01:08]} 15. Bh6 {[%emt 0:04:44]} O-O-O {[%emt 0:00:53]} 16. Nbd2 {[%emt 0:01:15]} Qc5 {[%emt 0:05:59]} 17. Nd4 {[%emt 0:07:23]} Bd7 {[%emt 0:08:12]} 18. Qg6 {[%emt 0:10:08]} Be8 {[%emt 0:05:28]} 19. Qxf6 {[%emt 0:04:02]} Rd6 {[%emt 0:00:08]} 20. Qf8 {[%emt 0:04:02]} Qd5 {[%emt 0:01:10]} 21. Rae1 {[%emt 0:02:01]} Rd8 {[%emt 0:00:42]} 22. Ne6 {[%emt 0:03:10]} Bc6 {[%emt 0:00:23]} 23. bxc6 {[%emt 0:05:58]} 1-0

[Event "28th Hit Open-A 2024"]
[Site "Nova Gorica"]
[Date "2024.01.28"]
[Round "4.40"]
[White "Pagano, Sergio"]
[Black "Mulec, Dejan"]
[Result "1-0"]
[ECO "E43"]
[WhiteElo "1821"]
[BlackElo "1577"]
[Annotator "NA RC"]
[PlyCount "77"]
[EventDate "2024.01.22"]
[EventType "swiss"]
[EventCountry "SLO"]
[SourceTitle "playchess.com"]
[Source "ChessBase"]
[SourceQuality "1"]
[TimeControl "5400+30"]

1. d4 {[%emt 0:00:04]} Nf6 {[%emt 0:00:09]} 2. c4 {[%emt 0:00:11]} e6 {[%emt 0:00:02]} 3. Nc3 {[%emt 0:00:16]} Bb4 {[%emt 0:00:14]} 4. e3 {[%emt 0:00:30]} b6 {[%emt 0:00:28]} 5. Bd3 {[%emt 0:01:49]} Bb7 {[%emt 0:00:23]} 6. f3 {[%emt 0:00:10]} Bxc3+ {[%emt 0:04:44]} 7. bxc3 {[%emt 0:00:08]} c5 {[%emt 0:00:01]} 8. e4 {[%emt 0:05:59]} d6 {[%emt 0:01:20]} 9. d5 {[%emt 0:02:01]} e5 {[%emt 0:01:11]} 10. f4 {[%emt 0:03:40]} Nbd7 {[%emt 0:02:09]} 11. Nf3 {[%emt 0:00:35]} Qe7 {[%emt 0:04:09]} 12. O-O {[%emt 0:02:30]} g6 {[%emt 0:10:15]} 13. a4 {[%emt 0:06:13]} O-O {[%emt 0:03:43]} 14. fxe5 {[%emt 0:03:04]} Nxe5 {[%emt 0:02:41]} 15. Nxe5 {[%emt 0:02:05]} Qxe5 {[%emt 0:00:56]} 16. Qf3 {[%emt 0:04:34]} Nh5 {[%emt 0:06:46]} 17. Bh6 {[%emt 0:04:29]} Ng7 {[%emt 0:00:21]} 18. Bf4 {[%emt 0:03:05]} Qe7 {[%emt 0:05:15]} 19. g4 {[%emt 0:05:27]} f6 {[%emt 0:06:10]} 20. Qg3 {[%emt 0:02:08]} Rad8 {[%emt 0:01:51]} 21. h4 {[%emt 0:01:11]} g5 {[%emt 0:05:09]} 22. Bd2 {[%emt 0:00:30]} h6 {[%emt 0:05:13]} 23. Rf2 {[%emt 0:01:34]} Bc8 {[%emt 0:04:30]} 24. a5 {[%emt 0:01:41]} Qe5 {[%emt 0:04:05]} 25. Kg2 {[%emt 0:00:50]} h5 {[%emt 0:08:27]} 26. Qxe5 {[%emt 0:04:00]} fxe5 {[%emt 0:00:49]} 27. Rxf8+ {[%emt 0:01:26]} Rxf8 {[%emt 0:00:17]} 28. Bxg5 {[%emt 0:01:49]} Bxg4 {[%emt 0:00:47]} 29. axb6 {[%emt 0:02:06]} axb6 {[%emt 0:00:37]} 30. Rf1 {[%emt 0:00:42]} Ra8 {[%emt 0:03:44]} 31. Be7 {[%emt 0:01:29]} Ra2+ {[%emt 0:01:05]} 32. Rf2 {[%emt 0:00:46]} Ra3 {[%emt 0:02:33]} 33. Bxd6 {[%emt 0:01:08]} Rxc3 {[%emt 0:00:35]} 34. Rd2 {[%emt 0:00:10]} Kf7 {[%emt 0:04:26]} 35. Bxe5 {[%emt 0:00:11]} Rb3 {[%emt 0:00:46]} 36. Be2 {[%emt 0:02:30]} Re3 {[%emt 0:02:59]} 37. Bxg4 {[%emt 0:00:48]} hxg4 {[%emt 0:00:02]} 38. Bxg7 {[%emt 0:00:12]} Kxg7 {[%emt 0:00:25]} 39. d6 {[%emt 0:00:10]} 1-0

[Event "28th Hit Open-A 2024"]
[Site "Nova Gorica"]
[Date "2024.01.28"]
[Round "4.41"]
[White "Cokan, Mirko"]
[Black "Racnik, Tone"]
[Result "0-1"]
[ECO "A34"]
[WhiteElo "1614"]
[BlackElo "1849"]
[Annotator "NA RC"]
[PlyCount "94"]
[EventDate "2024.01.22"]
[EventType "swiss"]
[EventCountry "SLO"]
[SourceTitle "playchess.com"]
[Source "ChessBase"]
[SourceQuality "1"]
[TimeControl "5400+30"]

1. e4 {[%emt 0:00:31]} d6 {[%emt 0:00:05]} 2. c4 {[%emt 0:00:58]} Nf6 {[%emt 0:01:21]} 3. Nc3 {[%emt 0:00:37]} c5 {[%emt 0:00:13]} 4. Nf3 {[%emt 0:01:18]} Nc6 {[%emt 0:00:11]} 5. Be2 {[%emt 0:01:53]} g6 {[%emt 0:00:37]} 6. O-O {[%emt 0:02:39]} Bg7 {[%emt 0:00:10]} 7. Rb1 {[%emt 0:01:03]} O-O {[%emt 0:00:16]} 8. d3 {[%emt 0:00:58]} a6 {[%emt 0:03:41]} 9. h3 {[%emt 0:01:05]} Rb8 {[%emt 0:02:45]} 10. Bd2 {[%emt 0:03:31]} b5 {[%emt 0:04:08]} 11. b3 {[%emt 0:01:02]} b4 {[%emt 0:01:05]} 12. Nd5 {[%emt 0:02:52]} e6 {[%emt 0:05:51]} 13. Nxf6+ {[%emt 0:00:33]} Bxf6 {[%emt 0:00:05]} 14. Qc1 {[%emt 0:00:13]} Bh8 {[%emt 0:01:44]} 15. h4 {[%emt 0:05:41]} a5 {[%emt 0:03:55]} 16. Bh6 {[%emt 0:02:11]} Re8 {[%emt 0:00:07]} 17. h5 {[%emt 0:03:58]} Bd7 {[%emt 0:02:16]} 18. hxg6 {[%emt 0:01:35]} hxg6 {[%emt 0:01:12]} 19. g3 {[%emt 0:00:39]} Nd4 {[%emt 0:05:46]} 20. Nxd4 {[%emt 0:02:17]} Bxd4 {[%emt 0:00:07]} 21. Kg2 {[%emt 0:00:16]} a4 {[%emt 0:02:15]} 22. Bd1 {[%emt 0:04:00]} axb3 {[%emt 0:00:19]} 23. Bxb3 {[%emt 0:00:22]} Bc6 {[%emt 0:01:12]} 24. Be3 {[%emt 0:03:22]} Bh8 {[%emt 0:05:03]} 25. Rh1 {[%emt 0:00:39]} f5 {[%emt 0:03:55]} 26. f3 {[%emt 0:01:53]} Rb7 {[%emt 0:00:56]} 27. Rh3 {[%emt 0:02:01]} Qf6 {[%emt 0:02:18]} 28. Qh1 {[%emt 0:03:08]} Bg7 {[%emt 0:01:24]} 29. Bc1 {[%emt 0:03:25]} Qd4 {[%emt 0:03:40]} 30. Qf1 {[%emt 0:06:20]} fxe4 {[%emt 0:04:12]} 31. Bb2 {[%emt 0:15:43]} exf3+ {[%emt 0:00:50]} 32. Kh2 {[%emt 0:00:05]} Qe3 {[%emt 0:01:13]} 33. Bxg7 {[%emt 0:02:20]} Rxg7 {[%emt 0:00:17]} 34. Rb2 {[%emt 0:02:37]} Ree7 {[%emt 0:03:21]} 35. Qf2 {[%emt 0:09:31]} Qg5 {[%emt 0:02:41]} 36. Bd1 {[%emt 0:02:11]} Rh7 {[%emt 0:03:39]} 37. Bxf3 {[%emt 0:05:35]} Rxh3+ {[%emt 0:00:20]} 38. Kxh3 {[%emt 0:00:07]} Rf7 {[%emt 0:00:11]} 39. Bxc6 {[%emt 0:01:03]} Rxf2 {[%emt 0:00:44]} 40. Rxf2 {[%emt 0:00:18]} Qe3 {[%emt 0:00:21]} 41. Rf3 {[%emt 0:00:09]} Qe2 {[%emt 0:00:19]} 42. Be4 {[%emt 0:00:21]} Kg7 {[%emt 0:00:06]} 43. Rf4 {[%emt 0:00:50]} Qxa2 {[%emt 0:00:16]} 44. Rg4 {[%emt 0:00:03]} b3 {[%emt 0:00:15]} 45. d4 {[%emt 0:00:13]} b2 {[%emt 0:00:20]} 46. Bxg6 {[%emt 0:00:06]} Kf6 {[%emt 0:00:13]} 47. Bc2 {[%emt 0:00:18]} b1=Q {[%emt 0:00:19]} 0-1

[Event "28th Hit Open-A 2024"]
[Site "Nova Gorica"]
[Date "2024.01.28"]
[Round "4.42"]
[White "Deschi, Leonardo Simone"]
[Black "Guid, Taja"]
[Result "0-1"]
[ECO "B21"]
[WhiteElo "1639"]
[BlackElo "1698"]
[Annotator "NA RC"]
[PlyCount "56"]
[EventDate "2024.01.22"]
[EventType "swiss"]
[EventCountry "SLO"]
[SourceTitle "playchess.com"]
[Source "ChessBase"]
[SourceQuality "1"]
[TimeControl "5400+30"]

1. e4 {[%emt 0:01:20]} c5 {[%emt 0:00:05]} 2. Nf3 {[%emt 0:01:10]} e6 {[%emt 0:00:07]} 3. d4 {[%emt 0:00:07]} cxd4 {[%emt 0:00:04]} 4. c3 {[%emt 0:00:05]} dxc3 {[%emt 0:03:03]} 5. Nxc3 {[%emt 0:00:08]} Nc6 {[%emt 0:10:03]} 6. Bc4 {[%emt 0:00:06]} a6 {[%emt 0:09:17]} 7. O-O {[%emt 0:00:08]} b5 {[%emt 0:01:26]} 8. Bb3 {[%emt 0:00:07]} Bc5 {[%emt 0:06:25]} 9. Bf4 {[%emt 0:07:46]} d6 {[%emt 0:08:02]} 10. Rc1 {[%emt 0:16:48]} Bb7 {[%emt 0:08:21]} 11. Qe2 {[%emt 0:04:45]} Qe7 {[%emt 0:07:24]} 12. Rfd1 {[%emt 0:06:44]} Nf6 {[%emt 0:06:08]} 13. Nxb5 {[%emt 0:14:26]} axb5 {[%emt 0:06:21]} 14. Rxc5 {[%emt 0:00:21]} dxc5 {[%emt 0:03:13]} 15. Bd6 {[%emt 0:00:13]} Qd7 {[%emt 0:01:57]} 16. Bxc5 {[%emt 0:00:16]} Qc8 {[%emt 0:01:55]} 17. Ng5 {[%emt 0:14:06]} h6 {[%emt 0:01:16]} 18. Nxe6 {[%emt 0:04:18]} fxe6 {[%emt 0:00:17]} 19. e5 {[%emt 0:00:11]} Nxe5 {[%emt 0:03:09]} 20. Qxe5 {[%emt 0:03:18]} Ra6 {[%emt 0:04:36]} 21. Be3 {[%emt 0:16:12]} Kf7 {[%emt 0:03:21]} 22. Rc1 {[%emt 0:03:25]} Rc6 {[%emt 0:00:19]} 23. Rf1 {[%emt 0:01:21]} Rd8 {[%emt 0:03:21]} 24. f4 {[%emt 0:00:55]} Rcd6 {[%emt 0:05:43]} 25. f5 {[%emt 0:00:47]} Bd5 {[%emt 0:00:54]} 26. Bd1 {[%emt 0:01:56]} exf5 {[%emt 0:00:51]} 27. Rxf5 {[%emt 0:00:26]} Qe6 {[%emt 0:01:35]} 28. Qf4 {[%emt 0:01:23]} Kg8 {[%emt 0:02:34]} 0-1

[Event "28th Hit Open-A 2024"]
[Site "Nova Gorica"]
[Date "2024.01.28"]
[Round "4.43"]
[White "Gratton, Damjan"]
[Black "Cortese, Lina"]
[Result "0-1"]
[ECO "C10"]
[WhiteElo "1691"]
[BlackElo "1582"]
[Annotator "NA RC"]
[PlyCount "84"]
[EventDate "2024.01.22"]
[EventType "swiss"]
[EventCountry "SLO"]
[SourceTitle "playchess.com"]
[Source "ChessBase"]
[SourceQuality "1"]
[TimeControl "5400+30"]

1. e4 {[%emt 0:00:06]} e6 {[%emt 0:00:43]} 2. d4 {[%emt 0:00:20]} d5 {[%emt 0:00:05]} 3. Nc3 {[%emt 0:01:58]} dxe4 {[%emt 0:00:15]} 4. Nxe4 {[%emt 0:00:14]} Nd7 {[%emt 0:00:09]} 5. Nf3 {[%emt 0:02:00]} Ngf6 {[%emt 0:00:09]} 6. Nxf6+ {[%emt 0:01:31]} Nxf6 {[%emt 0:00:07]} 7. Be2 {[%emt 0:00:36]} Be7 {[%emt 0:02:15]} 8. O-O {[%emt 0:00:13]} O-O {[%emt 0:00:13]} 9. h3 {[%emt 0:01:23]} h6 {[%emt 0:01:32]} 10. Be3 {[%emt 0:01:05]} c6 {[%emt 0:00:50]} 11. c4 {[%emt 0:01:45]} Bd6 {[%emt 0:02:53]} 12. Qc2 {[%emt 0:02:10]} Re8 {[%emt 0:01:31]} 13. Rad1 {[%emt 0:01:04]} b6 {[%emt 0:03:36]} 14. Rfe1 {[%emt 0:07:42]} Bb7 {[%emt 0:00:22]} 15. Ne5 {[%emt 0:04:10]} Qc7 {[%emt 0:03:05]} 16. Nd3 {[%emt 0:04:24]} c5 {[%emt 0:06:40]} 17. dxc5 {[%emt 0:02:25]} bxc5 {[%emt 0:00:19]} 18. Rd2 {[%emt 0:05:24]} Rad8 {[%emt 0:00:38]} 19. Red1 {[%emt 0:00:22]} Ne4 {[%emt 0:00:17]} 20. Bf1 {[%emt 0:04:16]} Nxd2 {[%emt 0:00:31]} 21. Rxd2 {[%emt 0:00:30]} Be4 {[%emt 0:00:49]} 22. Qd1 {[%emt 0:01:27]} Bg6 {[%emt 0:03:53]} 23. Qg4 {[%emt 0:03:11]} Bf5 {[%emt 0:03:39]} 24. Qh5 {[%emt 0:04:41]} Bg6 {[%emt 0:05:29]} 25. Qg4 {[%emt 0:01:25]} h5 {[%emt 0:00:25]} 26. Qf3 {[%emt 0:04:51]} e5 {[%emt 0:03:16]} 27. Qd1 {[%emt 0:05:01]} e4 {[%emt 0:03:19]} 28. Ne1 {[%emt 0:01:35]} Bh2+ {[%emt 0:01:49]} 29. Kh1 {[%emt 0:00:15]} Rxd2 {[%emt 0:00:08]} 30. Qxd2 {[%emt 0:01:31]} Rd8 {[%emt 0:00:40]} 31. Qc1 {[%emt 0:01:20]} Be5 {[%emt 0:00:51]} 32. g3 {[%emt 0:01:43]} Qd6 {[%emt 0:04:07]} 33. Be2 {[%emt 0:01:45]} Bd4 {[%emt 0:06:26]} 34. Bf4 {[%emt 0:02:46]} Qe6 {[%emt 0:01:20]} 35. Kg2 {[%emt 0:01:30]} Bf5 {[%emt 0:04:15]} 36. h4 {[%emt 0:03:09]} Bh3+ {[%emt 0:03:03]} 37. Kg1 {[%emt 0:01:10]} Bg4 {[%emt 0:04:01]} 38. Bf1 {[%emt 0:02:13]} Bf6 {[%emt 0:05:20]} 39. Ng2 {[%emt 0:03:53]} Rd1 {[%emt 0:02:16]} 40. Qc2 {[%emt 0:01:10]} Bf3 {[%emt 0:02:05]} 41. Ne3 {[%emt 0:01:01]} Qh3 {[%emt 0:01:06]} 42. Nxd1 {[%emt 0:02:39]} Qh1# {[%emt 0:02:54]} 0-1